{"text_format":"1","workbook":"xlsx","n_sheets":4,"sheets":["Start","Oek_Stroeme1","09_Entsch_Test1","Blanko1"],"not_rendered":{"charts":0,"images":17,"macros":1,"external_links":0,"defined_names":132,"comments":0,"pivot_tables":0},"unopened":[],"bounds":{"document_bytes":16777216,"sheet_cells":100000,"rows_first":2000,"rows_last":500,"rows_between":2000,"halvings":0,"cell_chars":16384,"cell_head_chars":4096},"cells_cut":0,"cells_raw":0,"read":"whole","date_system":"1900"}

{"sheet":"Start","index":0,"n_rows":18,"n_cols":31,"rows_kept":18,"cut":false,"hidden":false,"merged":[]}
[null,null,null,null,null,null,null,null,null,null,null,null,null,null,null,null,null,null,null,null,null,null,null,null,null,null,null,null,null,0,"Start"]
[null,null,null,null,null,null,null,"Modul 03 : BWL - Grundbegriffe",null,null,null,null,null,null,null,null,null,null,null,null,null,null,null,null,null,null,null,null,null,{"$f":"AD1+1","v":1},"01_Gruendungsphasen"]
[null,null,null,null,null,null,null,null,null,null,null,null,null,null,null,null,null,null,null,null,null,null,null,null,null,null,null,null,null,{"$f":"AD2+1","v":2},"02_Geschaeftsidee"]
[null,null,null,null,null,null,null,null,null,null,null,null,"Zu dieser Datei:",null,null,null,null,null,null,null,null,null,null,null,null,null,null,null,null,3,"03_Entscheidungen"]
[null,null,null,null,null,null,null,null,null,null,null,null,"Durch den Vergleich der Daten einer Schlussbilanz (z. B. \"31.12.\" d. J.) mit den Daten der Start-Bilanz ",null,null,null,null,null,null,null,null,null,null,null,null,null,null,null,null,4,"04_Standort"]
[null,null,null,null,null,null,null,null,null,null,null,null,"zu Beginn des Geschäftsjahres (z. B. \"01.01.\" d. J.) kann abgeleitet werden, welche Veränderungen im ",null,null,null,null,null,null,null,null,null,null,null,null,null,null,null,null,5,"05_Rechtsform"]
[null,null,null,null,null,null,null,null,null,null,null,null,"Vermögen, bei den Schulden und in Bezug auf das Eigenkapital eingetreten sind.",null,null,null,null,null,null,null,null,null,null,null,null,null,null,null,null,6,"06_Startfinanzierung"]
[null,null,null,null,null,null,null,null,null,null,null,null,"Diese zahlenmäßig feststellbaren Veränderungen sagen aber wenig (bis gar nichts) über die Ursachen ",null,null,null,null,null,null,null,null,null,null,null,null,null,null,null,null,7,"07_Businessplan"]
[null,null,null,null,null,null,null,null,null,null,null,null,"der ermittelten Veränderungen aus!",null,null,null,null,null,null,null,null,null,null,null,null,null,null,null,null,8,"08_BWL_Grundbegriffe"]
[null,null,null,null,null,null,null,null,null,null,null,null,"Um nachprüfbare Aussagen zu den Ursachen festgestellter Veränderungen (im Vermögen, bei den",null,null,null,null,null,null,null,null,null,null,null,null,null,null,null,null,9,"09_Entscheidungstest 1"]
[null,null,null,null,null,null,null,null,null,null,null,null,"Schulden  bzw. beim Eigenkapital) machen zu können, gilt es, die sich im Verlaufe  eines Geschäfts-"]
[null,null,null,null,null,null,null,null,null,null,null,null,"jahres zwischen dem Unternehmen und seiner Umwelt (vor allem den Märkten) vollziehenden "]
[null,null,null,null,null,null,null,null,null,null,null,null,"Güter- sowie Geld-/Finanzströme abzubilden!"]
[null,null,null,null,null,null,null,null,null,null,null,null,"Für diese Abbildung werden eine Reihe von Grundbegriffen benötigt, mit denen die zu unterscheiden-"]
[null,null,null,null,null,null,null,null,null,null,null,null,"den betriebswirtschaftlichen Sachverhalte exakt reflektiert und damit für das richtige Buchen der"]
[null,null,null,null,null,null,null,null,null,null,null,null,"Geschäftsvorfälle aufbereitet werden können."]
[null,null,null,null,null,null,null,null,null,null,null,null,"In diesem Wissenstest können Sie nachweisen, inwieweit Sie die betriebswirtschaftlichen Wirkungen"]
[null,null,null,null,null,null,null,null,null,null,null,null,"ausgewählter Geschäftsvorfälle durch Zuordnung zu den richtigen Begriffen kennzeichnen können."]

{"sheet":"Oek_Stroeme1","index":1,"n_rows":25,"n_cols":32,"rows_kept":25,"cut":false,"hidden":false,"merged":[[13,12,13,14],[21,3,21,5],[22,3,22,5],[15,3,15,5],[16,3,16,5],[17,3,17,5],[23,3,23,5],[24,3,24,5],[18,3,18,5],[19,3,19,5],[20,3,20,5],[2,2,2,9],[13,6,13,8],[13,9,13,11],[12,31,14,31],[12,2,14,2],[12,3,14,5],[13,21,13,22],[13,23,13,24],[13,25,13,26],[13,27,13,28],[13,29,13,30],[12,6,12,14],[12,15,12,30],[13,15,13,16],[13,17,13,18],[13,19,13,20]]}
[]
[]
[]
[null,null,"Wissenstests \"Ökonomische Ströme\""]
[]
[null,null,"Die Geschäftsaktionen und zugehörigen Entscheidungen eines Unternehmers betreffen fast immer zugleich auch Sachverhalte, die die stichtagsbezogene wirtschaftliche Lage seines"]
[null,null,"Unternehmens verändern und/oder zeitraumbezogene ökonomische Stromgößen wertmäßiger oder finanzieller Art repräsentieren."]
[]
[null,null,"Analog zu diesem Beispiel sollen nun die nachstehend aufgeführen Sachverhalte (Geschäftsvorfälle)  in ihrem Bezug zu betriebswirtschaftlichen Grundbegriffen beurteilt werden."]
[null,null,"Fügen Sie in die aus Ihrer Sicht zutreffenden Zellen ein \"X\" ein!      Bedeutung: Z = Zugang;  A = Abgang; 0 = keine Änderung;  J = zutreffend; N = Nicht zutreffend."]
[null,null,"Anschließend ist der Button \"Überprüfen\" anzuklicken, um zu sehen, ob alles richtig ist. "]
[]
[null,null,"Nr.","Sachverhalt (Geschäftsvorfall)",null,null,"stichtagsbezogen",null,null,null,null,null,null,null,null,"zeitraumbezogen",null,null,null,null,null,null,null,null,null,null,null,null,null,null,null,"Kom-mentar"]
[null,null,null,null,null,null,"Vermögen",null,null,"Eigenkapital",null,null,"Fremdkapital",null,null,"Aufwand",null,"Ertrag",null,"Kosten",null,"Leistung",null,"Ausgabe",null,"Einnahme",null,"Auszahlung",null,"Einzahlung"]
[null,null,null,null,null,null,"Z","A",0,"Z","A",0,"Z","A",0,"J","N","J","N","J","N","J","N","J","N","J","N","J","N","J","N"]
[null,null,1,"Der Unternehmer kauft  einen neuen Computer mit Zahlungsziel,"]
[null,null,{"$f":"C16+1","v":2},"Der Unternehmer bezahlt den monatlichen Bruttolohn für Beschäftigte per Banküberweisung."]
[null,null,{"$f":"C17+1","v":3},"Auf dem Bankkonto des Unternehmers geht eine Anzahlung auf eine Bestellung ein."]
[null,null,4,"Zum Berichtstermin wird eine Bestanderhöhung bei Fertigerzeugnissen ermittelt."]
[null,null,5,"Der Unternehmer verkauft aus dem Bestand an Fertigerzeugnissen Produkte an den Kunden K. (mit Zahlungsziel und USt-Ausweis) "]
[null,null,6,"Vom Geschäftskonto des Unternehmers werden eine Tilgungsrate sowie die Zinsen zu einem Kredit per Lastschrift abgebucht."]
[null,null,7,"Der Kunde K. begleicht den Rechnungsbetrag betreffs Geschäftsvorfall Nr. 5. ohne Abzug."]
[null,null,8,"Der  Unternehmer tätigt eine Rückstellung für eine im Abschlussjahr unterlassene Reparatur einer Maschine."]
[null,null,9,"Der Unternehmer kauft 5 Aktenordner (Büromaterial) gegen Barzahlung (Kasse)."]
[null,null,10,"Der Unternehmer tätigt eine Einzahlung von seinem Privatkonto auf das Geschäftskonto seines Unternehmens per Online-Baning."]

{"sheet":"09_Entsch_Test1","index":2,"n_rows":57,"n_cols":15,"rows_kept":57,"cut":false,"hidden":true,"merged":[[2,2,2,9],[50,7,50,8],[50,4,50,5],[55,3,56,3],[49,4,49,8],[49,2,56,2],[50,3,53,3]]}
[]
[]
[]
[null,null,"Tests zum Thema \"Entscheidungen\""]
[]
[null,null,"Test 01:"]
[null,null,"Ein risikoneutraler Unternehmensgründer steht vor der Frage, ob er eine im Prozess der Leistungserstellung festgestellte Kostenabweichung "]
[null,null,"in Höhe von",8000," EUR näher untersuchen soll oder nicht."]
[null,null,"Lässt er die Sache auf sich beruhen, dann muss er - nach seiner Erfahrung  - mit einer Wahrscheinlichkeit von",null,null,null,null,null,null,null,40," Prozent damit"]
[null,null,"rechnen, dass diese Mehrkosten auch in der nächsten Abrechnungsperiode anfallen."]
[null,null,"Führt er jedoch eine Ursachenanalyse durch, so ist damit ein Aufwand in Höhe von\t\t\t",null,null,null,null,null,null,1000," EUR verbunden, allerdings sinkt dann die"]
[null,null,"Wahrscheinlichkeit des Fortbestehens der Kostenüberschreitung auf",null,null,null,null,null,10," Prozent."]
[null,null,"Ihre Aufgabe:"]
[null,null,"Überprüfen Sie unter Nutzung des nachstehenden Schemas die Entscheidungalternativen mit ihren möglichen Wirkungen und geben Sie"]
[null,null,"dann an, welcher Variante der Unternehmengründer den Vorzug geben sollte (mit Begründung)!"]
[null,null,"(Hinweis: Bei Berechnungen sind Kosten- und Aufwandsgrößen mit einem \"Minus\"-Zeichen zu versehen)."]
[]
[null,null,null,"Variante 1:",null,null,null,"Wahrscheinlichkeit",null,"Wirkung (Kostenabweichung)",null,null,"Erwartungswert EW1"]
[null,null,null,"Analyse durchführen",null,"Aufwand",null,null," [-]",null," [EUR]",null,null," EUR"]
[]
[null,null,null,null,null,null,null,null,"[-]",null," [EUR]"]
[]
[]
[null,null,null,null,null,null,null,"Wahrscheinlichkeit",null,null,null,null,"Erwartungswert EW2"]
[null,null,null,null,null,null,null,null," [-]",null," [EUR]",null,null,"  [EUR]"]
[]
[null,null,null,"Variante 2: ",null,"Aufwand",null,null," [-]",null," [EUR]"]
[null,null,null,"Keine Analyse durchführen"]
[]
[null,null,"Antwort:"]
[]
[]
[]
[]
[]
[null,null,"Test 02:"]
[null,null,"Ein Unternehmensgründer hat mit seiner Firma \"X-GmbH\" eine gute Marktposition erreicht und bietet dem bisherigen alleinigen Marktführer, "]
[null,null,"dem Unternehmen \"Y- GmbH\" Konkurrenz. Allerdings stagnieren wegen weitgehender Marksättigung die  Umsätze beider Unternehmen."]
[null,null,"Damit stehen beide Unternehmen vor der Entscheidung, den Umsatz durch geeignete Werbemaßnahmen aktiv zu fördern."]
[null,null,"Mit einem Werbeaufwand von",null,null,10000," [EUR] kann eines der Unternehmen den umsatzabhängigen Gewinn der Branche um \t",null,null,null,null,null,null,15000," [EUR]"]
[null,null,"steigern. Da es sich bei den angebotenen Produkte um homogene Güter handelt, kommt der Gewinnzuwachs jenem der beiden Unternehmen je"]
[null,null,"zur Hälfte zu, also zum Betrag von",null,null,{"$f":"N40/2","v":7500}," [EUR]."]
[null,null,"Für das Unternehmen, dass diese Werbung ausführt, ergibt sich damit ein Saldo von ",null,null,null,null,null,null,{"$f":"N40/2-F40","v":-2500}," [EUR]."]
[null,null,"Werben hingegen beide Unternehmen gleichzeitig mit einem Aufwand von je",null,null,null,null,null,null,{"$f":"F40","v":10000}," [EUR], dann erhöht sich der umsatzabhängige "]
[null,null,"Gewinn um",30000," [EUR]. Dies bedeutet, dass jedes der beiden Unternehmen ein positives Ergebnis von  ",null,null,null,null,null,null,{"$f":"D45/2-J44","v":5000}," [EUR] erzielen könnte."]
[]
[null,null,"Ihre Aufgabe:"]
[null,null,"Vervollständigen Sie die nachstehende Tabelle der  möglichen \"'Auszahlungen\" und bewerten Sie die Ergebnssse (Optionsbutton)!"]
[]
[null,null,"Unternehmen X-GmbH",null,"Unternehmen Y-GmbH",null,null,null,null,"  Dies bedeutet:"]
[null,null,null,"Werben","Werben",null,null,"Nicht werben",null,null,"Eigennütziges Verhalten eines der Unternehmen"]
[null,null,null,null,"Wirkung für X","Wirkung  für Y",null,"Wirkung für X","Wirkung  für Y",null,"bringt für dieses Unternehmen"]
[null,null,null,null,null,{"$f":"L45","v":5000},null,null,{"$f":"F42","v":7500}]
[null,null,null,null,{"$f":"L45","v":5000},null,null,{"$f":"J43","v":-2500},null,null,"Führt eigennütziges Verhalten aller Beteiligten zu"]
[]
[null,null,null,"Nicht werben",null,{"$f":"J43","v":-2500},null,null,0]
[null,null,null,null,{"$f":"F42","v":7500},null,null,0]

{"sheet":"Blanko1","index":3,"n_rows":0,"n_cols":0,"rows_kept":0,"cut":false,"hidden":true,"merged":[]}